bitfinex/quotes_BTCUSD_20250718
["timestamp","ask_amount","ask_price","bid_price","bid_amount"]
[1752809532794,1.19371707,120210.0,120200.0,0.20111603]
[1752809533214,1.21035351,120210.0,120200.0,0.19966603]
[1752809533505,1.19371707,120210.0,120200.0,0.19966603]
[1752809534482,1.20203529,120210.0,120200.0,0.19966603]
[1752809534622,1.19371707,120210.0,120200.0,0.19966603]
[1752809535996,1.20203536,120210.0,120200.0,0.19966603]
[1752809536208,1.20203529,120210.0,120200.0,0.19966603]
[1752809536590,1.20203536,120210.0,120200.0,0.19966603]
[1752809537049,1.22303536,120210.0,120200.0,0.19966603]
[1752809537250,1.09463536,120210.0,120200.0,0.19966603]
[1752809537485,1.19367707,120210.0,120200.0,0.19966603]
[1752809539692,1.21031351,120210.0,120200.0,0.19966603]
[1752809539906,0.8091721,120210.0,120200.0,0.19966603]
[1752809540257,1.20199529,120210.0,120200.0,0.19966603]
[1752809540656,1.21031365,120210.0,120200.0,0.19966603]
[1752809541224,1.20199529,120210.0,120200.0,0.19966603]
[1752809541786,1.21031371,120210.0,120200.0,0.19966603]
[1752809542196,1.21031365,120210.0,120200.0,0.19966603]
[1752809542409,1.20199529,120210.0,120200.0,0.19966603]
[1752809543260,1.06531707,120210.0,120200.0,0.24108491]
[1752809543396,1.19367707,120210.0,120200.0,0.24108491]
[1752809543598,1.19367707,120210.0,120200.0,0.26078491]
[1752809545015,0.99391707,120210.0,120200.0,0.26078491]
[1752809545240,0.99391707,120210.0,120200.0,0.24108491]
[1752809545980,0.99391707,120210.0,120200.0,0.19966603]
[1752809546193,1.00223522,120210.0,120200.0,0.19966603]
[1752809546860,0.99391707,120210.0,120200.0,0.19966603]
[1752809547085,1.02193522,120210.0,120200.0,0.19966603]
[1752809547210,1.03025351,120210.0,120200.0,0.19966603]
[1752809547623,1.02193522,120210.0,120200.0,0.19966603]
[1752809548630,1.03021351,120210.0,120200.0,0.19966603]
[1752809548903,1.03021344,120210.0,120200.0,0.19966603]
[1752809549151,1.02189522,120210.0,120200.0,0.19966603]
[1752809549578,1.01357707,120210.0,120200.0,0.19966603]
[1752809550186,1.02189529,120210.0,120200.0,0.19966603]
[1752809550896,0.62075395,120210.0,120200.0,0.19966603]
[1752809551207,1.02189529,120210.0,120200.0,0.19966603]
[1752809551976,0.89357529,120210.0,120200.0,0.19966603]
[1752809552187,1.03017365,120210.0,120200.0,0.19966603]
[1752809553326,1.02185529,120210.0,120200.0,0.19966603]
[1752809553701,1.03017365,120210.0,120200.0,0.19966603]
[1752809553920,1.02185529,120210.0,120200.0,0.19966603]
[1752809554127,1.02185522,120210.0,120200.0,0.19966603]
[1752809554330,1.03017351,120210.0,120200.0,0.19966603]
[1752809554753,1.03017344,120210.0,120200.0,0.19966603]
[1752809555546,1.03849173,120210.0,120200.0,0.19966603]
[1752809556212,1.03017344,120210.0,120200.0,0.19966603]
[1752809556426,1.02185522,120210.0,120200.0,0.19966603]
[1752809556798,1.03017351,120210.0,120200.0,0.19966603]
[1752809557006,1.02185522,120210.0,120200.0,0.19966603]
[1752809557383,0.9963724,120210.0,120200.0,0.19966603]
[1752809557586,1.00469069,120210.0,120200.0,0.19966603]
[1752809558541,0.85977425,120210.0,120200.0,0.19966603]
[1752809558764,0.99633247,120210.0,120200.0,0.19966603]
[1752809558993,1.0257075,120210.0,120200.0,0.19966603]
[1752809560348,1.03402586,120210.0,120200.0,0.19966603]
[1752809560574,1.05332586,120210.0,120200.0,0.19966603]
[1752809560769,1.49522401,120210.0,120200.0,0.19966603]
[1752809560992,0.61142764,120210.0,120200.0,0.19966603]
[1752809561126,1.49522394,120210.0,120200.0,0.19966603]
[1752809561556,1.51989068,120210.0,120200.0,0.19966603]
[1752809561758,1.51157239,120210.0,120200.0,0.19966603]
[1752809562138,1.06967424,120210.0,120200.0,0.19966603]
[1752809562372,1.05037424,120210.0,120200.0,0.19966603]
[1752809562704,1.0586926,120210.0,120200.0,0.19966603]
[1752809563224,1.05869253,120210.0,120200.0,0.19966603]
[1752809563753,1.04205602,120210.0,120200.0,0.19966603]
[1752809565239,1.05869246,120210.0,120200.0,0.19966603]
[1752809565452,1.05037417,120210.0,120200.0,0.19966603]
[1752809565696,0.92213417,120210.0,120200.0,0.19966603]
[1752809565903,1.06241602,120210.0,120200.0,0.19966603]
[1752809566979,0.62051787,120210.0,120200.0,0.19966603]
[1752809567224,1.06241602,120210.0,120200.0,0.19966603]
[1752809567657,1.07073417,120210.0,120200.0,0.19966603]
[1752809569015,6.58744536,120210.0,120200.0,0.17470874]
[1752809569228,6.58744536,120210.0,120190.0,0.17472321]
[1752809569229,0.56342793,120200.0,120190.0,0.17472321]
[1752809569512,6.23248541,120200.0,120190.0,0.18304309]
[1752809569742,1.23248541,120200.0,120190.0,0.18304309]
[1752809569948,1.22416636,120200.0,120190.0,0.17472321]
[1752809570148,1.22416636,120200.0,120190.0,0.19136283]
[1752809570348,1.22416636,120200.0,120190.0,0.18304309]
[1752809570553,1.22416636,120200.0,120190.0,0.18404309]
[1752809571307,1.23870721,120200.0,120190.0,0.001]
[1752809571572,1.23038802,120200.0,120190.0,0.16740319]
[1752809571803,1.25538002,120200.0,120190.0,0.18404343]
[1752809572021,1.25538002,120200.0,120190.0,0.2006834]
[1752809572858,1.25638002,120200.0,120190.0,0.2006834]
[1752809573079,1.20741406,120200.0,120190.0,0.20800328]
[1752809573300,1.20841406,120200.0,120190.0,0.17472334]
[1752809573710,1.20841406,120200.0,120190.0,0.18304343]
[1752809573917,1.20841406,120200.0,120190.0,0.17472334]
[1752809574126,0.04515908,120190.0,120180.0,0.17820829]
[1752809574334,1.02471157,120190.0,120180.0,0.17820829]
[1752809574785,1.01639155,120190.0,120180.0,0.17820829]
[1752809574989,1.02471157,120190.0,120180.0,0.17820829]
[1752809575210,1.02471143,120190.0,120180.0,0.17820829]
[1752809575420,1.03303145,120190.0,120180.0,0.17820829]
[1752809575663,1.02471143,120190.0,120180.0,0.17820829]
[1752809576389,1.03303145,120190.0,120180.0,0.17820829]
[1752809576692,1.03303194,120190.0,120180.0,0.17920829]
[1752809576816,1.02471185,120190.0,120180.0,0.17920829]
[1752809577357,1.01639183,120190.0,120180.0,0.17920829]
[1752809577949,1.02471185,120190.0,120180.0,0.17920829]
[1752809579239,1.06295552,120190.0,120180.0,0.17920885]
[1752809579376,1.18279571,120190.0,120180.0,0.17088814]
[1752809579574,1.18279571,120190.0,120180.0,0.2054521]
[1752809579783,6.18279571,120190.0,120180.0,0.17920885]
[1752809579990,6.18279571,120190.0,120180.0,0.18752949]
[1752809580406,6.18279571,120190.0,120180.0,0.19585006]
[1752809580571,6.19733656,120190.0,120180.0,0.17088814]
[1752809580771,6.19733656,120190.0,120180.0,0.17920885]
[1752809580772,6.18901668,120190.0,120180.0,0.17920885]
[1752809581362,6.18901668,120190.0,120180.0,0.17088814]
[1752809581740,6.06085668,120190.0,120180.0,0.17573789]
[1752809581950,6.18065666,120190.0,120180.0,0.001]
[1752809582875,6.20565066,120190.0,120180.0,0.001]
[1752809583707,0.34832071,120180.0,120170.0,0.20803666]
[1752809583919,5.99758318,120180.0,120170.0,0.24547876]
[1752809584122,1.16713022,120180.0,120170.0,0.24547876]
[1752809584336,1.175451,120180.0,120170.0,0.24547876]
[1752809584960,0.61610163,120180.0,120170.0,0.24547876]
[1752809585156,0.61610142,120180.0,120170.0,0.24547876]
[1752809585359,1.01735432,120180.0,120170.0,0.24547876]
[1752809586194,0.62442213,120180.0,120170.0,0.24547876]
[1752809586400,1.01735432,120180.0,120170.0,0.20903666]
[1752809586652,0.62442185,120180.0,120170.0,0.20903666]
[1752809586837,1.01735404,120180.0,120170.0,0.20903666]
[1752809587225,1.02567475,120180.0,120170.0,0.20903666]
[1752809588507,1.03111908,120180.0,120170.0,0.20903666]
[1752809591694,1.07773697,120180.0,120170.0,0.20071567]
[1752809591902,1.19749654,120180.0,120170.0,0.19239462]
[1752809592540,1.06109604,120180.0,120170.0,0.19239462]
[1752809592773,6.33707554,120180.0,120170.0,0.001]
[1752809593171,6.36207254,120180.0,120170.0,0.001]
[1752809594148,0.36496545,120160.0,120150.0,1.05897665]
[1752809594356,0.9876959,120160.0,120150.0,1.05897665]
[1752809594563,0.99601792,120160.0,120150.0,1.05897665]
[1752809594973,1.00434001,120160.0,120150.0,1.05897665]
[1752809595258,0.9876959,120160.0,120150.0,1.14473627]
[1752809595470,0.97661785,120160.0,120150.0,1.14473627]
[1752809595670,0.83189408,120160.0,120150.0,1.14473627]
[1752809595872,0.96829583,120160.0,120150.0,1.14473627]
[1752809596436,0.97661778,120160.0,120150.0,1.14473627]
[1752809597180,0.97661778,120160.0,120150.0,1.14573627]
[1752809597408,0.98493987,120160.0,120150.0,1.14573627]
[1752809598145,1.15138461,120160.0,120150.0,1.05165428]
[1752809598417,1.17168523,120160.0,120150.0,1.05165497]
[1752809598609,1.17168523,120160.0,120150.0,1.05997755]
[1752809598837,1.17168523,120160.0,120150.0,1.06830006]
[1752809599102,0.98027422,120160.0,120150.0,1.10217542]
[1752809599326,0.82357247,120160.0,120150.0,1.10217542]
[1752809599552,0.95165247,120160.0,120150.0,1.10217542]
[1752809599816,0.95997408,120160.0,120150.0,1.0766225]
[1752809601032,0.95165247,120160.0,120150.0,1.0766225]
[1752809601248,0.95165247,120160.0,120150.0,1.0780725]
[1752809601465,0.43064028,120160.0,120150.0,1.0780725]
[1752809601684,0.94961247,120160.0,120150.0,1.0975725]
[1752809601898,0.95793408,120160.0,120150.0,1.0975725]
[1752809602107,0.97664778,120160.0,120150.0,1.06975006]
[1752809602326,0.98496994,120160.0,120150.0,1.06830013]
[1752809602536,1.00426987,120160.0,120150.0,1.07662257]
[1752809602756,0.99594765,120160.0,120150.0,1.07662257]
[1752809602962,1.02366954,120160.0,120150.0,1.07662257]
[1752809603177,1.19843637,120160.0,120150.0,1.07662257]
[1752809603321,1.1984374,120160.0,120150.0,1.07662257]
[1752809603745,1.02367043,120160.0,120150.0,1.07662257]
[1752809603955,1.01534827,120160.0,120150.0,1.07662257]
[1752809604130,1.01534827,120160.0,120150.0,1.06830013]
[1752809604354,0.99594827,120160.0,120150.0,1.15405975]
[1752809604522,6.17071524,120160.0,120150.0,1.06830027]
[1752809604798,5.99594827,120160.0,120150.0,1.06830027]
[1752809604991,5.98762618,120160.0,120150.0,1.07662271]
[1752809605244,5.8679082,120160.0,120150.0,1.07662271]
[1752809605422,6.00427029,120160.0,120150.0,1.07662271]
[1752809605626,6.00427029,120160.0,120150.0,1.16238233]
[1752809605826,6.60290436,120160.0,120150.0,0.86859004]
[1752809606037,6.73094436,120160.0,120150.0,0.86859004]
[1752809606239,6.75594636,120160.0,120150.0,0.86859004]
[1752809607586,1.75594636,120160.0,120150.0,0.86859004]
[1752809607801,6.75594636,120160.0,120150.0,0.86859004]
[1752809608457,6.62790636,120160.0,120150.0,0.86859004]
[1752809608667,6.75594636,120160.0,120150.0,0.86859004]
[1752809608886,6.36301417,120160.0,120150.0,1.11382482]
[1752809609108,6.22389633,120160.0,120150.0,1.12214747]
[1752809609366,6.35193633,120160.0,120150.0,1.06001692]
[1752809609910,5.95900414,120160.0,120150.0,1.05169427]
[1752809610137,6.35193633,120160.0,120150.0,1.06001692]
[1752809610571,6.34361431,120160.0,120150.0,1.05169427]
[1752809610785,6.33529222,120160.0,120150.0,1.04337155]
[1752809611269,6.34797006,120160.0,120150.0,1.04337155]
[1752809611669,6.34797006,120160.0,120150.0,1.06001699]
[1752809611997,6.21993006,120160.0,120150.0,0.86859004]
[1752809612221,6.74090225,120160.0,120150.0,0.86859004]
[1752809612860,6.61286225,120160.0,120150.0,0.86859004]
[1752809613064,6.74086225,120160.0,120150.0,0.86859004]
[1752809613333,6.74186225,120160.0,120150.0,0.86759004]
[1752809613532,6.74186225,120160.0,120150.0,1.03404863]
[1752809613704,6.22193006,120160.0,120150.0,1.05069428]
[1752809613905,6.34993006,120160.0,120150.0,1.05069428]
[1752809614244,6.34993006,120160.0,120150.0,0.86759004]
[1752809614450,6.74286225,120160.0,120150.0,0.86759004]
[1752809614904,6.74286225,120160.0,120150.0,1.03404863]
[1752809615113,6.34993006,120160.0,120150.0,1.04237149]
[1752809615323,6.34993006,120160.0,120150.0,1.03404863]
[1752809616194,6.34993006,120160.0,120150.0,1.04237155]
[1752809616428,6.34993006,120160.0,120150.0,1.05069434]
[1752809617039,6.34993006,120160.0,120150.0,1.04237155]
[1752809617344,6.34993006,120160.0,120150.0,1.05069441]
[1752809617549,6.22193006,120160.0,120150.0,1.05901713]
[1752809617752,6.02912916,120160.0,120150.0,1.13518735]
[1752809618127,6.03745132,120160.0,120150.0,1.07566222]
[1752809618340,6.01815132,120160.0,120150.0,1.07566222]
[1752809618754,6.21291829,120160.0,120150.0,1.07566222]
[1752809618902,6.21291829,120160.0,120150.0,1.07566236]
[1752809619354,6.36291829,120160.0,120150.0,1.05901686]
[1752809619575,6.21291829,120160.0,120150.0,1.06733944]
[1752809619786,6.36291829,120160.0,120150.0,1.06733944]
[1752809620082,6.20459647,120160.0,120150.0,1.05901686]
[1752809620319,6.20459647,120160.0,120150.0,1.12082971]
[1752809620751,5.79166428,120160.0,120150.0,1.12082971]
[1752809620977,6.18459647,120160.0,120150.0,1.12082971]
[1752809621191,6.01815173,120160.0,120150.0,1.12082971]
[1752809621401,6.18459647,120160.0,120150.0,1.12082971]
[1752809621624,6.18459647,120160.0,120150.0,1.05901686]
[1752809621824,6.20399647,120160.0,120150.0,1.05901686]
[1752809622325,6.03755173,120160.0,120150.0,1.06733944]
[1752809622479,6.01815173,120160.0,120150.0,1.07566188]
[1752809622675,6.18459647,120160.0,120150.0,1.07566188]
[1752809624595,6.18459647,120160.0,120150.0,1.06733944]
[1752809624795,6.34587445,120160.0,120150.0,1.04237149]
[1752809625011,6.74794448,120160.0,120150.0,0.86759004]
[1752809625671,6.35501229,120160.0,120150.0,1.03404863]
[1752809626071,6.35501229,120160.0,120150.0,1.04237155]
[1752809626276,6.74794448,120160.0,120150.0,1.05069441]
[1752809626490,6.35501229,120160.0,120150.0,1.05069441]
[1752809626723,0.87662889,120160.0,120150.0,1.20237191]
[1752809626961,1.02627259,120160.0,120150.0,1.07711229]
[1752809627190,1.02627259,120160.0,120150.0,1.07566229]
[1752809627658,1.0513826,120160.0,120150.0,1.07566229]
[1752809627898,1.02969862,120160.0,120150.0,1.11661229]
[1752809628136,1.05970455,120160.0,120150.0,1.09426229]
[1752809628595,1.05138246,120160.0,120150.0,1.09426229]
[1752809628801,0.93174455,120160.0,120150.0,1.09426229]
[1752809629008,0.65012825,120160.0,120150.0,1.13280365]
[1752809629219,1.04099044,120160.0,120150.0,1.13280365]
[1752809629627,0.90470862,120160.0,120150.0,1.11681229]
[1752809629831,1.01305533,120160.0,120150.0,1.11681229]
[1752809630251,0.62012314,120160.0,120150.0,1.11681229]
[1752809630696,0.60554229,120160.0,120150.0,1.11681229]
[1752809630908,0.26554229,120160.0,120150.0,1.11772229]
[1752809631319,0.26554229,120160.0,120150.0,1.20348191]
[1752809631528,0.28008314,120160.0,120150.0,1.20348191]
[1752809632938,0.16957086,120160.0,120150.0,1.20348191]
[1752809634254,0.14446085,120160.0,120150.0,1.20348191]
[1752809634609,0.002,120160.0,120150.0,1.5964141]
[1752809634806,0.12992,120160.0,120150.0,1.5964141]
[1752809635439,0.12892,120160.0,120150.0,1.5964141]
[1752809635640,0.12792,120160.0,120150.0,1.5964141]
[1752809636798,0.12792,120160.0,120150.0,1.20348191]
[1752809637018,0.88528023,120180.0,120170.0,0.19139466]
[1752809637224,1.09871051,120180.0,120170.0,0.26599171]
[1752809638071,0.75871051,120180.0,120170.0,0.26599171]
[1752809638292,0.75971051,120180.0,120170.0,0.26599171]
[1752809638507,0.73471751,120180.0,120170.0,0.26599171]
[1752809638922,0.73571751,120180.0,120170.0,0.26599171]
[1752809639148,0.63566638,120180.0,120170.0,0.26690171]
[1752809640287,0.50774638,120180.0,120170.0,0.26690171]
[1752809640499,0.42988,120180.0,120170.0,0.6598339]
[1752809641720,0.12788,120180.0,120170.0,0.6598339]
[1752809641966,0.12788,120180.0,120170.0,0.6618339]
[1752809642174,0.12788,120180.0,120170.0,0.6628339]
[1752809642798,0.00608962,120180.0,120170.0,0.26990171]
[1752809643012,0.12788,120180.0,120170.0,0.26990171]
[1752809646104,0.12788,120180.0,120170.0,0.26899171]
[1752809646312,0.13389504,120180.0,120170.0,0.26899171]
[1752809648402,0.12788,120180.0,120170.0,0.26899171]
[1752809649553,0.12788,120180.0,120170.0,0.6619239]
[1752809649752,0.00588794,120190.0,120180.0,0.20997875]
[1752809649955,0.13372794,120190.0,120180.0,0.29597684]
[1752809650159,0.12784,120190.0,120180.0,0.29597684]
[1752809651008,0.12784,120190.0,120180.0,0.29697684]
[1752809652150,0.13095,120190.0,120180.0,0.29697684]
[1752809653070,0.13686778,120190.0,120180.0,0.29697684]
[1752809653279,0.13095,120190.0,120180.0,0.29697684]
[1752809653473,0.12784,120190.0,120180.0,0.29697684]
[1752809654784,0.44389202,120200.0,120190.0,0.19136283]
[1752809654994,0.67822239,120200.0,120190.0,0.23936469]
[1752809655277,0.2852902,120200.0,120190.0,0.23936469]
[1752809655482,0.67822239,120200.0,120190.0,0.23936469]
[1752809655988,0.67090348,120200.0,120190.0,0.23936469]
[1752809656398,0.67687788,120200.0,120190.0,0.23936469]
[1752809656544,0.68519672,120200.0,120190.0,0.23936469]
[1752809656752,0.67687788,120200.0,120190.0,0.23936469]
[1752809656977,0.28394569,120200.0,120190.0,0.23936469]
[1752809657147,0.67687788,120200.0,120190.0,0.23936469]
[1752809657342,0.68519679,120200.0,120190.0,0.23936469]
[1752809657549,0.68619672,120200.0,120190.0,0.23936469]
[1752809657745,0.6945157,120200.0,120190.0,0.23936469]
[1752809658075,0.68619672,120200.0,120190.0,0.23936469]
[1752809659710,0.67787788,120200.0,120190.0,0.23936469]
[1752809659910,0.68619672,120200.0,120190.0,0.23936469]
[1752809660172,0.67787788,120200.0,120190.0,0.23936469]
[1752809660371,0.68619672,120200.0,120190.0,0.23936469]
[1752809660723,0.711154,120200.0,120190.0,0.23936469]
[1752809660901,0.72203475,120200.0,120190.0,0.23936469]
[1752809661193,0.70539672,120200.0,120190.0,0.23936469]
[1752809662057,0.69707788,120200.0,120190.0,0.23936469]
[1752809662267,0.67787788,120200.0,120190.0,0.23936469]
[1752809662783,0.65907788,120200.0,120190.0,0.23936469]
[1752809662999,0.26614569,120200.0,120190.0,0.23936469]
[1752809663409,0.65907788,120200.0,120190.0,0.23936469]
[1752809666106,0.28384569,120200.0,120190.0,0.23936469]
[1752809666438,0.68509686,120200.0,120190.0,0.23936469]
[1752809666639,0.68509679,120200.0,120190.0,0.23936469]
[1752809667221,0.2921646,120200.0,120190.0,0.23936469]
[1752809667421,0.68509679,120200.0,120190.0,0.23936469]
[1752809668183,0.69341584,120200.0,120190.0,0.23936469]
[1752809668387,0.72113496,120200.0,120190.0,0.23936469]
[1752809668535,0.57665679,120200.0,120190.0,0.23936469]
[1752809668737,0.70445679,120200.0,120190.0,0.23936469]
[1752809669209,0.68505679,120200.0,120190.0,0.23936469]
[1752809669419,0.67673788,120200.0,120190.0,0.23936469]
[1752809670080,0.68505679,120200.0,120190.0,0.23936469]
[1752809670486,0.68505672,120200.0,120190.0,0.23936469]
[1752809670771,0.6933757,120200.0,120190.0,0.23936469]
[1752809672125,0.710014,120200.0,120190.0,0.23936469]
[1752809672332,0.71001387,120200.0,120190.0,0.23936469]
[1752809672533,0.34410087,120200.0,120190.0,0.23936469]
[1752809672688,0.72871387,120200.0,120190.0,0.23936469]
[1752809672896,0.7120757,120200.0,120190.0,0.23936469]
[1752809673091,0.6933757,120200.0,120190.0,0.23936469]
[1752809676195,0.68505672,120200.0,120190.0,0.23936469]
[1752809676406,0.29212453,120200.0,120190.0,0.23936469]
[1752809676608,0.68505672,120200.0,120190.0,0.23936469]
[1752809677221,0.69337577,120200.0,120190.0,0.23936469]
[1752809677470,0.68505672,120200.0,120190.0,0.23936469]
[1752809679027,0.7340683,120200.0,120190.0,0.23936469]
[1752809679726,0.74238728,120200.0,120190.0,0.23936469]
[1752809679938,0.7340683,120200.0,120190.0,0.23936469]
[1752809680472,0.74238721,120200.0,120190.0,0.23936469]
[1752809681384,0.61458721,120200.0,120190.0,0.23936469]
[1752809681629,0.74238721,120200.0,120190.0,0.23936469]
[1752809681878,1.00009379,120210.0,120200.0,0.44064072]
[1752809682096,1.23839307,120210.0,120200.0,0.50864121]
[1752809682318,1.24055307,120210.0,120200.0,0.50864121]
[1752809682539,1.24055307,120210.0,120200.0,0.51696033]
[1752809683015,0.95469572,120210.0,120200.0,0.51696033]
[1752809683270,1.09281367,120210.0,120200.0,0.52527931]
[1752809683470,1.08449518,120210.0,120200.0,0.52527931]
[1752809683718,0.47335928,120210.0,120200.0,0.52527931]
[1752809683943,0.04252985,120210.0,120200.0,1.00853308]
[1752809684191,0.155789,120210.0,120200.0,1.00853308]
[1752809684637,0.027989,120210.0,120200.0,0.56658931]
[1752809684861,0.16186286,120210.0,120200.0,0.53028931]
[1752809685089,0.17557108,120210.0,120200.0,0.52731931]
[1752809685278,0.24234871,120210.0,120200.0,0.52527931]
[1752809685572,0.81708462,120210.0,120200.0,0.52527931]
[1752809685827,0.81708462,120210.0,120200.0,0.52627931]
[1752809686061,0.65070912,120210.0,120200.0,0.52627931]
[1752809686278,1.0898399,120210.0,120200.0,0.25861279]
[1752809686526,6.60757398,120210.0,120200.0,0.25861279]
[1752809686747,7.06036598,120210.0,120200.0,0.25861279]
[1752809686974,7.07977097,120210.0,120200.0,0.25961279]
[1752809687212,7.23411749,120210.0,120200.0,0.25861279]
[1752809687430,7.22804363,120210.0,120200.0,0.25861279]
[1752809687886,7.20863864,120210.0,120200.0,0.25861279]
[1752809688111,7.20863864,120210.0,120200.0,0.25761279]
[1752809688616,7.20963864,120210.0,120200.0,0.25761279]
[1752809688861,6.36691556,120210.0,120200.0,0.25761279]
[1752809689080,6.21691556,120210.0,120200.0,0.25761279]
[1752809689295,6.36891556,120210.0,120200.0,0.25761279]
[1752809689983,6.21791556,120210.0,120200.0,0.25761279]
[1752809690220,6.36991556,120210.0,120200.0,0.25761279]
[1752809690674,5.97719248,120210.0,120200.0,0.25761279]
[1752809690956,6.36991556,120210.0,120200.0,0.25761279]
[1752809691195,6.76902404,120210.0,120200.0,0.25761279]
[1752809691417,6.64122404,120210.0,120200.0,0.25761279]
[1752809691654,6.76902404,120210.0,120200.0,0.25761279]
[1752809692114,6.37630096,120210.0,120200.0,0.25761279]
[1752809692343,6.37630096,120210.0,120200.0,1.12520283]
[1752809692344,6.86350096,120210.0,120200.0,1.12520283]
[1752809692576,6.88787492,120210.0,120200.0,1.12520283]
[1752809693548,6.76007492,120210.0,120200.0,1.12520283]
[1752809693753,6.88787492,120210.0,120200.0,1.12520283]
[1752809695845,6.76007492,120210.0,120200.0,1.12520283]
[1752809696051,6.88787492,120210.0,120200.0,1.12520283]
[1752809698466,1.76007492,120210.0,120200.0,1.12520283]
[1752809698675,6.88787492,120210.0,120200.0,1.12520283]
[1752809699692,7.75000299,120210.0,120200.0,1.06181794]
[1752809699912,7.62220299,120210.0,120200.0,1.06181794]
[1752809700052,7.75000299,120210.0,120200.0,1.06181794]
[1752809702051,7.62220299,120210.0,120200.0,1.06181794]
[1752809702241,7.75000299,120210.0,120200.0,1.06181794]
[1752809705552,7.730598,120210.0,120200.0,1.06181794]
[1752809705974,6.91007492,120210.0,120200.0,1.06181794]
[1752809706182,6.40553407,120210.0,120200.0,1.22820729]
[1752809706339,6.70793407,120210.0,120200.0,1.06181794]
[1752809706547,6.85027492,120210.0,120200.0,1.06181794]
[1752809707120,6.86927492,120210.0,120200.0,1.06181794]
[1752809707325,7.153298,120210.0,120200.0,1.06181794]
[1752809707535,7.281098,120210.0,120200.0,1.06181794]
[1752809707731,6.49565184,120210.0,120200.0,1.06181794]
[1752809708137,7.281098,120210.0,120200.0,1.06181794]
[1752809709023,2.281098,120210.0,120200.0,1.06181794]
[1752809709227,7.281098,120210.0,120200.0,1.06181794]
[1752809709810,6.88837492,120210.0,120200.0,1.06181794]
[1752809711036,7.281098,120210.0,120200.0,1.06181794]
[1752809715214,7.281098,120210.0,120200.0,1.14757756]
[1752809715215,6.49565184,120210.0,120200.0,1.14757756]
[1752809715379,6.49565184,120210.0,120200.0,1.06181794]
[1752809715380,6.88837492,120210.0,120200.0,1.06181794]
[1752809715962,7.153298,120210.0,120200.0,1.06181794]
[1752809716172,7.281058,120210.0,120200.0,1.06181794]
[1752809716835,6.49561184,120210.0,120200.0,1.06181794]
[1752809717045,7.281058,120210.0,120200.0,1.06181794]
[1752809719537,6.49561184,120210.0,120200.0,1.06181794]
[1752809719752,7.281058,120210.0,120200.0,1.06181794]
[1752809721010,7.28064262,120210.0,120200.0,1.06181794]
[1752809721456,7.28064262,120210.0,120200.0,1.14757756]
[1752809721669,7.28064262,120210.0,120200.0,1.06181794]
[1752809721869,6.88791954,120210.0,120200.0,1.06181794]
[1752809722082,7.26154262,120210.0,120200.0,1.06181794]
[1752809722879,6.47609646,120210.0,120200.0,1.06181794]
[1752809723104,7.26154262,120210.0,120200.0,1.06181794]
[1752809723567,0.03972392,120210.0,120200.0,1.36011691]
[1752809723761,0.0103854,120210.0,120200.0,1.51283447]
[1752809724180,0.0083854,120210.0,120200.0,1.38507447]
[1752809724387,0.0083854,120210.0,120200.0,1.51283447]
[1752809724589,0.0063854,120210.0,120200.0,1.51383447]
[1752809724980,0.14230085,120220.0,120210.0,0.23043098]
[1752809725223,0.14230085,120220.0,120210.0,0.30771436]
[1752809725425,0.53502393,120220.0,120210.0,0.31076436]
[1752809725807,0.14230085,120220.0,120210.0,0.31076436]
[1752809726009,0.40726393,120220.0,120210.0,0.31076436]
[1752809726303,0.01454085,120220.0,120210.0,0.31076436]
[1752809726694,0.512182,120240.0,120230.0,0.23039916]
[1752809726904,1.05516137,120240.0,120230.0,0.27373756]
[1752809727129,1.05516137,120240.0,120230.0,0.27678756]
[1752809727537,0.00015024,120240.0,120230.0,0.27678756]
[1752809727744,0.12791024,120240.0,120230.0,0.27678756]
[1752809727947,0.12791024,120240.0,120230.0,0.40454756]
[1752809728150,0.12891024,120240.0,120230.0,0.40454756]
[1752809728565,0.12791024,120240.0,120230.0,0.40454756]
[1752809728766,0.00015024,120240.0,120230.0,0.27878756]
[1752809728971,0.12791024,120240.0,120230.0,0.36520916]
[1752809729521,0.12991024,120240.0,120230.0,0.36520916]
[1752809729916,0.12791024,120240.0,120230.0,0.36520916]
[1752809730315,0.1344142,120240.0,120230.0,0.36520916]
[1752809731011,0.1344142,120240.0,120230.0,0.42002856]
[1752809731183,0.0066542,120240.0,120230.0,0.41998856]
[1752809731815,0.0066542,120240.0,120230.0,0.29226856]
[1752809732024,0.0066542,120240.0,120230.0,0.36516916]
[1752809734593,0.52713728,120240.0,120230.0,0.36520916]
[1752809734823,0.52713728,120240.0,120230.0,0.23744916]
[1752809735307,0.52729728,120240.0,120230.0,0.23744916]
[1752809735528,0.1345742,120240.0,120230.0,0.23744916]
[1752809735746,0.52729728,120240.0,120230.0,0.23744916]
[1752809735964,0.1345742,120240.0,120230.0,0.23744916]
[1752809736186,0.52729728,120240.0,120230.0,0.23744916]
[1752809736594,0.52729728,120240.0,120230.0,0.29228456]
[1752809736768,0.0066542,120240.0,120230.0,0.29228456]
[1752809736980,0.52761728,120240.0,120230.0,0.29228456]
[1752809737182,0.0066542,120240.0,120230.0,0.29228456]
[1752809737360,0.1349342,120240.0,120230.0,0.29228456]
[1752809737570,0.0066542,120240.0,120230.0,0.23744916]
[1752809737790,0.1349342,120240.0,120230.0,0.23744916]
[1752809738874,0.52765728,120240.0,120230.0,0.23744916]
[1752809739572,0.39937728,120240.0,120230.0,0.23744916]
[1752809739803,0.52765728,120240.0,120230.0,0.23744916]
[1752809740399,0.39937728,120240.0,120230.0,0.23744916]
[1752809740600,0.53597335,120240.0,120230.0,0.23744916]
[1752809741002,0.52765728,120240.0,120230.0,0.23744916]
[1752809741891,0.1349342,120240.0,120230.0,0.23744916]
[1752809742103,0.52765728,120240.0,120230.0,0.23744916]
[1752809743951,0.1349342,120240.0,120230.0,0.23744916]
[1752809744168,0.39937728,120240.0,120230.0,0.23744916]
[1752809744373,0.52765728,120240.0,120230.0,0.23744916]
[1752809745146,0.54219813,120240.0,120230.0,0.23744916]
[1752809745318,0.43055076,120240.0,120230.0,0.23744916]
[1752809745514,0.55257434,120240.0,120230.0,0.19529916]
[1752809745990,0.55257434,120240.0,120230.0,0.19834916]
[1752809746208,0.55875076,120240.0,120230.0,0.19834916]
[1752809746394,0.55875069,120240.0,120230.0,0.19834916]
[1752809746803,0.55875069,120240.0,120230.0,0.21704916]
[1752809747011,0.15771126,120240.0,120230.0,0.21704916]
[1752809747147,0.55043434,120240.0,120230.0,0.21704916]
[1752809747355,0.55043434,120240.0,120230.0,0.23844916]
[1752809747562,0.55875062,120240.0,120230.0,0.23844916]
[1752809750716,1.11794839,120240.0,120230.0,0.002]
[1752809750922,6.24606839,120240.0,120230.0,0.002]
[1752809751132,6.11794839,120240.0,120230.0,0.002]
[1752809751334,5.85334531,120240.0,120230.0,0.1849824]
[1752809751539,5.72522531,120240.0,120230.0,0.1849824]
[1752809751772,5.84506896,120240.0,120230.0,0.002]
[1752809751976,5.55889132,120240.0,120230.0,0.17666522]
[1752809752180,5.55889132,120240.0,120230.0,0.22209932]
[1752809752181,5.44977886,120240.0,120230.0,0.22209932]
[1752809752384,5.82036507,120240.0,120230.0,0.22009946]
[1752809752591,5.82136507,120240.0,120230.0,0.22009946]